bitfinex/quotes_SOLUSD_20220118
["timestamp","ask_amount","ask_price","bid_price","bid_amount"]
[1642475163402,3.88719513,140.21,140.17,48.15245377]
[1642475163800,3.88719513,140.25,140.18,0.25]
[1642475164000,3.88719513,140.25,140.18,7.405]
[1642475164200,3.88719513,140.25,140.18,18.1016]
[1642475164399,2.852,140.24,140.18,7.665]
[1642475165203,3.112,140.24,140.2,0.02459961]
[1642475167303,0.25,140.23,140.2,0.02459961]
[1642475167805,6.06119793,140.22,140.2,0.02459961]
[1642475168204,2.852,140.22,140.2,0.02459961]
[1642475169005,6.73919513,140.24,140.2,0.02459961]
[1642475169408,2.852,140.24,140.2,0.02459961]
[1642475170310,0.25,140.23,140.18,0.25]
[1642475173514,0.25,140.23,140.17,0.28456986]
[1642475173711,0.25,140.23,140.17,10.50456986]
[1642475173712,2.853,140.22,140.17,10.50456986]
[1642475173913,3.103,140.23,140.17,10.50456986]
[1642475174114,3.103,140.23,140.17,10.76456986]
[1642475174515,3.103,140.23,140.17,10.51456986]
[1642475174716,3.103,140.23,140.17,0.28456986]
[1642475174915,27.1407,140.23,140.17,0.02456986]
[1642475175314,27.1407,140.23,140.16,13.36762937]
[1642475176016,27.4007,140.23,140.16,13.36762937]
[1642475176215,27.4007,140.23,140.17,0.25]
[1642475177614,27.4007,140.23,140.17,10.9478]
[1642475177816,27.4007,140.23,140.18,3.8245731]
[1642475178014,24.5477,140.23,140.18,6.6765731]
[1642475178215,24.5477,140.23,140.18,6.9365731]
[1642475179116,24.2977,140.23,140.18,47.31921999]
[1642475179316,6.73919513,140.25,140.19,0.25]
[1642475179516,3.88719513,140.25,140.2,2.852]
[1642475179915,3.88719513,140.25,140.21,0.25]
[1642475180116,3.88719513,140.25,140.21,41.14919279]
[1642475180315,3.88719513,140.25,140.21,47.40919279]
[1642475180515,1.53855414,140.26,140.21,47.40919279]
[1642475181616,1.53855414,140.26,140.21,57.59389279]
[1642475181818,1.53855414,140.26,140.21,51.85389279]
[1642475185126,1.53855414,140.26,140.22,0.25]
[1642475185326,1.53855414,140.26,140.23,10.71781036]
[1642475185530,1.53855414,140.26,140.24,36.97695518]
[1642475185826,1.53855414,140.26,140.24,43.23695518]
[1642475186026,1.53855414,140.26,140.24,46.08895518]
[1642475186529,24.4626,140.29,140.24,46.08895518]
[1642475187927,24.4626,140.29,140.24,8.852]
[1642475188128,24.4626,140.29,140.23,2.87551036]
[1642475188327,24.4626,140.29,140.23,0.02451036]
[1642475188729,2.851,140.28,140.23,0.02451036]
[1642475188929,3.101,140.28,140.23,0.02451036]
[1642475189127,10.6969,140.27,140.23,0.02451036]
[1642475190133,0.25,140.26,140.23,0.02451036]
[1642475190331,0.25,140.26,140.2,56.10451326]
[1642475190332,0.26,140.27,140.2,56.12896414]
[1642475190530,0.26,140.27,140.2,66.82456414]
[1642475190731,0.25,140.27,140.21,0.25]
[1642475190956,23.1147,140.27,140.21,0.25]
[1642475191657,22.8647,140.27,140.21,0.25]
[1642475192059,22.8647,140.27,140.21,10.9448]
[1642475192257,22.8647,140.27,140.21,16.9448]
[1642475193659,3.88719513,140.28,140.21,16.9448]
[1642475193863,3.88719513,140.28,140.22,2.852]
[1642475194062,3.88719513,140.28,140.23,40.92909852]
[1642475194259,3.88719513,140.29,140.23,41.17909852]
[1642475194461,30.66399513,140.29,140.23,41.17909852]
[1642475195260,30.66399513,140.29,140.24,0.02448062]
[1642475195659,41.35929513,140.29,140.24,0.02448062]
[1642475196460,38.50829513,140.29,140.24,0.02448062]
[1642475196863,27.81299513,140.29,140.24,0.02448062]
[1642475197560,23.9258,140.29,140.24,0.02448062]
[1642475198261,24.1858,140.29,140.24,0.02448062]
[1642475198863,24.1858,140.29,140.24,2.87548062]
[1642475199265,24.1858,140.29,140.25,0.25]
[1642475199663,24.1858,140.29,140.24,2.87548062]
[1642475199864,24.1858,140.29,140.24,0.02448062]
[1642475200163,24.1858,140.29,140.23,51.64671967]
[1642475200363,24.1858,140.29,140.24,0.25]
[1642475201465,27.0368,140.29,140.24,0.25]
[1642475201666,26.7768,140.29,140.24,0.25]
[1642475202866,27.0368,140.29,140.24,0.25]
[1642475203367,27.0368,140.29,140.23,40.95351967]
[1642475203769,27.0368,140.29,140.24,0.25]
[1642475203970,24.1858,140.29,140.24,0.25]
[1642475205170,24.1858,140.29,140.26,0.02442115]
[1642475205368,6.06119793,140.28,140.26,0.02442115]
[1642475206272,2.851,140.28,140.26,0.02442115]
[1642475206475,3.111,140.28,140.26,0.02442115]
[1642475207078,6.14159897,140.28,140.26,0.02442115]
[1642475207978,5.88159897,140.28,140.26,0.02442115]
[1642475208482,26.7768,140.29,140.26,0.02442115]
[1642475208682,23.9258,140.29,140.26,0.02442115]
[1642475208882,0.25,140.28,140.26,0.02442115]
[1642475210209,0.25,140.28,140.24,10.71699142]
[1642475213814,0.25,140.28,140.24,10.97699142]
[1642475214414,0.25,140.28,140.24,10.71699142]
[1642475214819,0.25,140.28,140.24,10.97699142]
[1642475215216,0.25,140.28,140.26,0.02442115]
[1642475220238,2.851,140.3,140.24,62.9506852]
[1642475220427,26.99869513,140.31,140.25,0.25]
[1642475220627,3.88719513,140.31,140.25,10.9417]
[1642475220827,3.88719513,140.31,140.25,17.2017]
[1642475221029,3.88719513,140.31,140.25,88.5017]
[1642475221528,106.51066318,140.33,140.25,88.5017]
[1642475221729,93.22756318,140.33,140.25,113.4715]
[1642475222127,28.91818161,140.33,140.25,113.4715]
[1642475222328,5.30408161,140.33,140.26,10.23]
[1642475222531,5.30408161,140.33,140.28,10.6892]
[1642475222929,5.30408161,140.33,140.29,0.25]
[1642475223129,1.41688648,140.33,140.29,48.71034571]
[1642475223329,1.41688648,140.33,140.3,2.85]
[1642475223528,3.03059897,140.32,140.29,51.56034571]
[1642475223733,1.41688648,140.33,140.29,2.85]
[1642475223929,1.41688648,140.33,140.26,13.08]
[1642475224129,1.41688648,140.33,140.26,16.23]
[1642475224330,1.67688648,140.33,140.26,16.23]
[1642475224730,1.67688648,140.33,140.26,51.68793907]
[1642475225132,1.67688648,140.33,140.31,0.02427255]
[1642475225332,25.07078648,140.33,140.31,0.02427255]
[1642475225730,6.06119793,140.32,140.31,0.02427255]
[1642475229259,6.32119793,140.32,140.31,0.02427255]
[1642475230262,6.32119793,140.32,140.27,0.27427255]
[1642475230865,6.32119793,140.32,140.27,0.02427255]
[1642475231264,44.61403058,140.31,140.27,0.02427255]
[1642475232465,0.25,140.3,140.27,0.02427255]
[1642475233066,24.6275,140.3,140.27,0.02427255]
[1642475233566,3.03059897,140.29,140.27,0.02427255]
[1642475235172,12.48012487,140.28,140.27,0.02427255]
[1642475235469,12.48012487,140.28,140.24,3.1253617]
[1642475235870,0.26,140.29,140.24,3.1253617]
[1642475236671,24.3775,140.3,140.24,3.1253617]
[1642475236869,46.02357528,140.29,140.24,3.1253617]
[1642475238675,2.851,140.31,140.24,13.8170617]
[1642475238875,2.851,140.32,140.24,24.3070617]
[1642475239076,2.851,140.32,140.24,29.8250617]
[1642475239276,2.851,140.32,140.24,35.8250617]
[1642475239711,2.851,140.32,140.25,39.98096585]
[1642475239880,40.51985311,140.33,140.26,13.791]
[1642475240081,43.37085311,140.33,140.26,10.94]
[1642475240280,0.25,140.32,140.26,17.22442115]
[1642475240981,0.25,140.32,140.26,11.22442115]
[1642475241582,3.101,140.32,140.26,11.22442115]
[1642475241979,2.851,140.32,140.26,11.22442115]
[1642475242681,13.5418,140.35,140.27,2.851]
[1642475242881,2.851,140.35,140.28,0.25]
[1642475243080,28.75419513,140.36,140.29,2.85]
[1642475243280,28.75419513,140.36,140.3,0.25]
[1642475243483,28.75419513,140.36,140.3,5.582]
[1642475243683,28.75419513,140.36,140.31,40.65498755]
[1642475243883,28.75419513,140.36,140.31,0.26]
[1642475244082,28.75419513,140.36,140.32,0.25]
[1642475244281,28.75419513,140.36,140.31,0.26]
[1642475244282,24.867,140.36,140.31,0.26]
[1642475244481,24.867,140.36,140.3,5.842]
[1642475244683,24.867,140.36,140.3,16.529]
[1642475244882,24.867,140.36,140.3,64.42088914]
[1642475245285,2.85,140.37,140.33,0.02421314]
[1642475245990,4.1305131,140.38,140.33,0.02421314]
[1642475246186,4.1305131,140.38,140.33,7.52221314]
[1642475246384,3.88719513,140.4,140.33,7.78221314]
[1642475246586,3.88719513,140.4,140.33,13.78221314]
[1642475246784,3.88719513,140.4,140.34,43.85080317]
[1642475246985,3.88719513,140.4,140.34,54.53470317]
[1642475247221,3.88719513,140.4,140.35,0.25]
[1642475247788,3.88719513,140.4,140.36,2.849]
[1642475247985,3.88719513,140.4,140.36,9.617]
[1642475248185,3.88719513,140.4,140.37,49.08748283]
[1642475248385,3.88719513,140.4,140.37,49.34748283]
[1642475249094,2.849,140.43,140.37,49.34748283]
[1642475250289,2.849,140.43,140.39,0.02403501]
[1642475250588,3.88719513,140.43,140.39,0.02403501]
[1642475250789,4.14719513,140.43,140.39,0.02403501]
[1642475251489,0.25,140.42,140.39,0.02403501]
[1642475251689,3.098,140.42,140.39,0.02403501]
[1642475251890,2.848,140.42,140.39,0.02403501]
[1642475252091,6.06119793,140.41,140.39,0.02403501]
[1642475252492,14.01555062,140.41,140.39,0.02403501]
[1642475253193,14.27555062,140.41,140.39,0.02403501]
[1642475253592,6.32119793,140.41,140.39,0.02403501]
[1642475253796,3.03059897,140.41,140.39,0.02403501]
[1642475255020,3.88719513,140.42,140.39,0.02403501]
[1642475255219,3.03059896,140.41,140.37,0.27400533]
[1642475255419,3.03059896,140.41,140.38,3.8245731]
[1642475255619,3.03059897,140.4,140.38,3.8245731]
[1642475255820,3.8199269,140.38,140.37,0.02400533]
[1642475256021,18.65473086,140.38,140.37,0.02400533]
[1642475256220,21.50373086,140.38,140.37,0.02400533]
[1642475256424,18.65473086,140.38,140.37,0.02400533]
[1642475256620,2.849,140.4,140.37,0.02400533]
[1642475256820,0.25,140.39,140.37,0.02400533]
[1642475257020,5.87959897,140.38,140.37,0.02400533]
[1642475258225,3.03059897,140.38,140.37,0.02400533]
[1642475259526,6.06119793,140.38,140.37,0.02400533]
[1642475259728,6.32119793,140.38,140.37,0.02400533]
[1642475260125,6.32119793,140.38,140.31,47.76204576]
[1642475260327,6.06119793,140.38,140.31,47.76204576]
[1642475260727,6.06119793,140.38,140.31,2.87309437]
[1642475260928,0.25,140.37,140.31,2.87309437]
[1642475261128,2.85,140.36,140.31,2.87309437]
[1642475261329,0.25,140.37,140.31,2.87309437]
[1642475261529,2.85,140.36,140.31,2.87309437]
[1642475261732,2.85,140.36,140.32,47.54076702]
[1642475261931,0.25,140.37,140.31,2.87309437]
[1642475262129,0.25,140.37,140.32,0.25]
[1642475264532,0.25,140.37,140.33,3.8262549]
[1642475265435,0.25,140.37,140.34,0.02418344]
[1642475266034,3.03059897,140.36,140.34,0.02418344]
[1642475266736,3.03059897,140.36,140.33,2.45063834]
[1642475266936,3.28059896,140.35,140.33,2.45063834]
[1642475267734,3.03059897,140.34,140.33,2.45063834]
[1642475268135,3.29059897,140.34,140.33,2.45063834]
[1642475269939,0.26,140.34,140.33,2.45063834]
[1642475270840,0.51,140.34,140.33,2.45063834]
[1642475271241,0.26,140.34,140.33,2.45063834]
[1642475271442,0.51,140.34,140.33,2.45063834]
[1642475272341,0.26,140.34,140.33,2.45063834]
[1642475273242,3.29059897,140.34,140.33,2.45063834]
[1642475281551,3.03059896,140.35,140.34,34.03]
[1642475281753,111.7,140.51,140.34,34.03]
[1642475281754,2.85,140.59,140.45,1.39133086]
[1642475281953,10.8934,140.59,140.48,0.30550007]
[1642475282154,106.99,140.6,140.52,14.87104015]
[1642475282155,2.846,140.6,140.52,14.87104015]
[1642475282355,2.846,140.6,140.53,10.23]
[1642475282553,104.41953439,140.59,140.54,10.23]
[1642475282753,2.845,140.59,140.52,10.23]
[1642475282955,35.18666267,140.63,140.51,25.10104015]
[1642475282956,2.845,140.62,140.53,10.23]
[1642475283155,2.845,140.62,140.54,10.23]
[1642475283353,2.845,140.62,140.55,10.23]
[1642475283557,2.845,140.62,140.56,10.23]
[1642475283757,41.20570829,140.58,140.57,10.23]
[1642475284158,41.20570829,140.58,140.52,127.87]
[1642475284358,41.20570829,140.58,140.53,10.23]
[1642475284959,41.20570829,140.58,140.52,123.11268292]
[1642475285159,45.26929822,140.58,140.54,10.23]
[1642475285460,45.26929822,140.58,140.55,10.23]
[1642475286057,45.26929822,140.58,140.51,35.33104015]
[1642475286458,4.06358993,140.57,140.51,35.33104015]
[1642475287262,0.25,140.56,140.51,35.33104015]
[1642475287461,21.61457339,140.54,140.51,10.23]
[1642475287658,21.61457339,140.54,140.52,3.03219997]
[1642475288160,19.58305983,140.54,140.52,3.03219997]
[1642475288582,19.58305983,140.54,140.51,10.23]
[1642475289082,19.58305983,140.54,140.52,3.03219997]
[1642475289281,19.58305983,140.54,140.51,10.23]
[1642475289482,3.03059896,140.53,140.49,10.23]
[1642475289984,60.0,140.51,140.45,1.79587541]
[1642475290183,2.847,140.5,140.45,1.79587541]
[1642475290385,2.847,140.51,140.45,1.79587541]
[1642475290783,35.85422185,140.51,140.43,57.88230967]
[1642475291083,35.85422185,140.51,140.44,2.847]
[1642475291286,33.00722185,140.51,140.44,2.847]
[1642475291684,0.25,140.5,140.44,2.847]
[1642475291885,0.25,140.5,140.45,0.25]
[1642475292487,33.00722185,140.51,140.45,0.25]
[1642475292685,2.03151356,140.51,140.46,10.23]
[1642475292886,2.03151356,140.51,140.47,0.25]
[1642475293185,2.03151356,140.51,140.47,10.23]
[1642475293986,42.61972758,140.52,140.47,10.23]
[1642475294386,4.87851356,140.53,140.47,10.23]
[1642475294884,4.87851356,140.53,140.48,0.25]
[1642475294885,2.03151356,140.53,140.48,0.25]
[1642475295385,1.42722926,140.54,140.47,44.80397696]
[1642475295588,2.846,140.53,140.46,0.25]
[1642475295784,0.25,140.53,140.46,3.097]
[1642475296189,0.25,140.53,140.46,3.357]
[1642475296392,0.25,140.53,140.46,3.097]
[1642475296993,0.25,140.53,140.46,0.25]
[1642475297493,2.28151356,140.53,140.45,20.9075]
[1642475297695,2.847,140.52,140.46,0.25]
[1642475297892,4.87851356,140.53,140.47,44.67885385]
[1642475298095,2.03151356,140.53,140.47,44.67885385]
[1642475298293,2.03151356,140.53,140.48,0.25]
[1642475298895,6.30474282,140.54,140.48,0.25]
[1642475300098,3.45874282,140.54,140.48,0.25]
[1642475302001,3.45874282,140.54,140.48,10.9252]
[1642475302603,3.45874282,140.54,140.49,2.846]
[1642475302800,3.45874282,140.54,140.5,0.25]
[1642475303201,3.45874282,140.54,140.5,38.89721109]
[1642475303401,1.42722926,140.54,140.5,38.89721109]
[1642475304503,1.42722926,140.54,140.5,49.57021109]
[1642475304904,1.42722926,140.54,140.5,10.923]
[1642475307235,1.42722926,140.54,140.48,13.5205]
[1642475307535,1.42722926,140.54,140.49,0.25]
[1642475307934,1.42722926,140.54,140.48,13.5205]
[1642475308137,2.846,140.53,140.48,13.5205]
[1642475308333,4.27322926,140.54,140.48,13.5205]
[1642475308534,1.42722926,140.54,140.48,46.74681981]
[1642475308734,3.45874282,140.54,140.48,46.74681981]
[1642475309135,3.45874282,140.54,140.48,10.6745]
[1642475309635,1.42722926,140.54,140.49,0.25]
[1642475310436,1.17722926,140.54,140.49,10.9244]
[1642475310838,1.17722926,140.54,140.49,11.1844]
[1642475311036,1.17722926,140.54,140.5,43.0595144]
[1642475311436,1.17722926,140.54,140.51,0.25]
[1642475312135,36.03059896,140.53,140.51,0.25]
[1642475312335,3.03059896,140.53,140.51,0.25]
[1642475312535,3.03059896,140.53,140.49,0.25]
[1642475313537,1.17722926,140.54,140.49,0.25]
[1642475313741,1.17722926,140.54,140.49,10.9238]
[1642475314137,1.17722926,140.54,140.49,11.1838]
[1642475315644,1.17722926,140.54,140.5,2.846]
[1642475315845,1.17722926,140.54,140.51,0.25]
[1642475316340,1.17722926,140.54,140.52,3.03219997]
[1642475319146,1.17722926,140.54,140.53,0.25]
[1642475319344,4.20782822,140.54,140.52,3.03219997]
[1642475319844,4.20782822,140.54,140.53,0.25]
[1642475320146,1.17722926,140.54,140.53,0.25]
[1642475320646,1.17722926,140.54,140.52,3.03219997]
[1642475320848,1.17722926,140.54,140.53,0.25]
[1642475321448,1.17722926,140.54,140.52,3.03219997]
[1642475322450,3.03059896,140.53,140.52,3.03219997]
[1642475322854,3.03059896,140.53,140.52,3.28219997]
[1642475323052,3.03059896,140.53,140.52,0.25]
[1642475323853,3.03059896,140.53,140.51,0.25]
[1642475324053,3.03059896,140.53,140.51,10.9227]
[1642475324253,1.17722926,140.54,140.52,0.25]
[1642475324454,1.17722926,140.54,140.5,0.25]
[1642475325553,1.17722926,140.54,140.5,10.6735]
[1642475325755,1.17722926,140.54,140.51,0.25]
[1642475325959,1.17722926,140.54,140.52,3.03219997]
[1642475328355,1.17722926,140.54,140.53,0.25]
[1642475331163,1.17722926,140.54,140.52,3.03219997]
[1642475332857,1.17722926,140.54,140.53,0.25]
[1642475335961,4.20782822,140.54,140.52,3.03219997]
[1642475336163,4.20782822,140.54,140.5,13.5189]
[1642475336363,4.20782822,140.54,140.5,16.6729]
[1642475336763,1.17722926,140.54,140.5,10.6729]
[1642475337263,1.17722926,140.54,140.51,0.25]
[1642475337463,1.17722926,140.54,140.52,3.03219997]
[1642475349508,0.67722926,140.54,140.52,13.70429997]
[1642475349706,26.95391356,140.57,140.53,0.25]
[1642475350308,24.9224,140.57,140.53,0.25]
[1642475350506,24.9224,140.57,140.53,10.9212]
[1642475350707,24.9224,140.57,140.53,54.05958389]
[1642475353608,24.9224,140.57,140.53,10.9212]
[1642475353808,24.9224,140.57,140.51,13.5173]
[1642475354008,24.9224,140.57,140.51,13.7773]
[1642475354310,24.9224,140.57,140.51,2.845]
[1642475354709,26.63258702,140.57,140.51,2.845]
[1642475355408,28.66410058,140.57,140.52,0.25]
[1642475355609,28.66410058,140.57,140.51,0.25]
[1642475356913,28.66410058,140.57,140.51,10.9227]
[1642475361522,26.95391356,140.57,140.51,10.9227]
[1642475362529,74.62186473,140.57,140.51,10.9227]
[1642475363130,74.62186473,140.57,140.51,0.25]
[1642475365332,0.25,140.56,140.5,2.846]
[1642475365530,3.096,140.56,140.49,2.846]
[1642475365734,3.096,140.56,140.47,1.79587541]
[1642475366331,13.7725,140.56,140.47,1.79587541]
[1642475366532,71.3,140.55,140.47,1.79587541]
[1642475366734,2.846,140.54,140.44,10.6776]
[1642475366935,3.096,140.54,140.44,10.6776]
[1642475367363,10.6797,140.52,140.43,13.077]
[1642475367661,46.64970258,140.5,140.43,2.847]
[1642475367859,3.097,140.49,140.43,2.847]
[1642475368060,3.097,140.49,140.41,1.79587541]
[1642475368459,10.6843,140.47,140.41,1.79587541]
[1642475368659,6.75706554,140.46,140.41,1.79587541]
[1642475368863,7.00706554,140.46,140.41,1.79587541]
[1642475369661,3.098,140.46,140.41,1.79587541]
[1642475370563,3.098,140.46,140.38,40.38416126]
[1642475370564,3.098,140.46,140.38,43.23216126]
[1642475370764,3.098,140.46,140.39,0.25]
[1642475371565,3.098,140.46,140.38,53.91486126]
[1642475371765,3.098,140.46,140.38,51.06686126]
[1642475373067,3.098,140.46,140.39,1.79587541]
[1642475375770,3.098,140.46,140.39,12.47767541]
[1642475375972,2.848,140.47,140.4,0.25]
[1642475376170,2.03151356,140.48,140.41,2.848]
[1642475376370,2.03151356,140.48,140.42,0.25]
[1642475376572,2.03151356,140.48,140.44,47.13506015]
[1642475376772,2.03151356,140.48,140.45,2.847]
[1642475376971,2.03151356,140.48,140.46,3.03219997]
[1642475377474,1.36063657,140.51,140.46,3.03219997]
[1642475377672,4.20763657,140.51,140.46,3.03219997]
[1642475379275,0.25,140.5,140.46,3.03219997]
[1642475379773,0.25,140.5,140.44,47.13506015]
[1642475384079,0.25,140.5,140.43,13.5258]
[1642475384479,0.25,140.5,140.43,2.847]
[1642475384680,71.55,140.5,140.43,2.847]
[1642475385283,4.19723961,140.49,140.43,2.847]
[1642475385483,2.847,140.49,140.41,12.02587541]
[1642475385681,0.25,140.48,140.43,10.6788]
[1642475385881,0.25,140.48,140.43,17.9708]
[1642475386482,0.25,140.48,140.44,42.33157483]
[1642475386682,0.25,140.48,140.45,10.6768]
[1642475386882,0.25,140.49,140.47,38.17956092]
[1642475387084,2.03151356,140.5,140.47,38.17956092]
[1642475387281,1.36063657,140.51,140.47,38.17956092]
[1642475387282,3.39215013,140.51,140.47,38.17956092]
[1642475387483,3.39215013,140.51,140.47,45.93756092]
[1642475388286,1.36063657,140.51,140.47,45.93756092]
[1642475388487,1.36063657,140.51,140.48,2.847]
[1642475388786,1.36063657,140.51,140.49,3.03219997]
[1642475390585,1.36063657,140.51,140.5,40.58350613]
[1642475390786,26.74361356,140.54,140.5,48.03450613]
[1642475390985,0.25,140.53,140.5,48.03450613]
[1642475391185,0.25,140.53,140.51,3.03219997]
[1642475392186,2.28151356,140.55,140.51,3.03219997]
[1642475394814,5.12751356,140.55,140.51,3.03219997]
[1642475396518,4.87751356,140.55,140.51,3.03219997]
[1642475396716,16.14038768,140.55,140.51,3.03219997]
[1642475397318,16.14038768,140.55,140.48,45.75794062]
[1642475397719,16.14038768,140.55,140.47,13.5229]
[1642475398922,41.10148768,140.55,140.47,13.5229]
[1642475399120,0.25,140.54,140.47,13.5229]
[1642475400320,3.096,140.54,140.47,13.5229]
[1642475401421,38.25548768,140.55,140.48,0.25]
[1642475401631,26.99261356,140.55,140.49,13.5204]
[1642475403025,26.99261356,140.55,140.49,49.03639497]
[1642475403226,24.9611,140.55,140.49,49.03639497]
[1642475407830,24.9611,140.55,140.49,13.5204]
[1642475409130,27.8071,140.55,140.49,13.5204]
[1642475410333,24.9611,140.55,140.49,10.6744]
[1642475410935,2.03151356,140.56,140.49,10.6744]
[1642475411337,2.03151356,140.56,140.5,10.923]
[1642475411536,2.03151356,140.56,140.51,2.846]
[1642475411735,2.03151356,140.56,140.5,10.923]
[1642475411936,2.03151356,140.56,140.5,10.673]
[1642475412135,46.48586489,140.57,140.49,2.846]
[1642475412364,2.846,140.56,140.48,29.58877541]
[1642475412564,27.087,140.56,140.48,4.64187541]
[1642475412763,27.087,140.56,140.48,1.79587541]
[1642475412764,0.25,140.55,140.48,1.79587541]
[1642475412966,6.10441679,140.53,140.48,1.79587541]
[1642475413167,6.10441679,140.53,140.46,4.64187541]
[1642475413366,0.25,140.52,140.46,1.79587541]
[1642475413567,3.097,140.52,140.46,1.79587541]
[1642475414364,3.097,140.52,140.45,2.847]
[1642475414666,3.097,140.52,140.46,0.25]
[1642475414964,28.0937,140.52,140.46,0.25]
[1642475415967,25.2467,140.52,140.46,0.25]
[1642475416765,25.2467,140.52,140.45,2.847]
[1642475418366,28.0937,140.52,140.45,2.847]
[1642475418568,28.0937,140.52,140.45,13.5243]
[1642475419268,28.0937,140.52,140.45,57.66257217]
[1642475420772,28.0937,140.52,140.45,59.45844758]
[1642475421674,25.2467,140.52,140.45,59.45844758]
[1642475422676,25.2467,140.52,140.46,10.9265]
[1642475423079,4.87851356,140.54,140.46,10.9265]
[1642475423278,4.87851356,140.54,140.46,11.1865]
[1642475423683,2.03151356,140.54,140.46,11.1865]
[1642475424082,2.03151356,140.54,140.46,12.57476565]
[1642475424580,4.87751356,140.56,140.47,1.79587541]
[1642475424782,2.03151356,140.56,140.49,10.6744]
[1642475425181,2.03151356,140.56,140.5,0.25]
[1642475426381,29.69111356,140.57,140.49,0.25]
[1642475426583,29.69111356,140.57,140.5,10.6737]
[1642475427185,29.69111356,140.57,140.51,0.25]
[1642475427390,26.84511356,140.57,140.5,10.6737]
[1642475428588,2.846,140.56,140.5,10.6737]
[1642475428789,0.25,140.55,140.49,2.846]
[1642475428990,2.63081322,140.55,140.49,2.846]
[1642475429187,2.63081322,140.55,140.48,1.79587541]
[1642475429791,97.01141322,140.55,140.48,1.79587541]
[1642475429992,99.04292678,140.55,140.47,2.846]
[1642475430189,2.846,140.54,140.46,24.89487541]
[1642475430388,0.25,140.53,140.46,35.57097541]
[1642475431518,0.25,140.53,140.46,33.7751]
[1642475431917,0.25,140.53,140.45,12.02587541]
[1642475432319,22.8055,140.53,140.45,12.02587541]
[1642475432719,46.35628671,140.52,140.46,0.25]
[1642475433320,46.35628671,140.52,140.45,0.25]
[1642475433920,0.25,140.51,140.45,0.25]
[1642475434925,0.25,140.51,140.45,10.9275]
[1642475438029,46.35628671,140.52,140.45,10.9275]
[1642475439230,46.35628671,140.52,140.45,12.72337541]
[1642475441735,46.35628671,140.52,140.46,2.847]
[1642475441935,49.20328671,140.52,140.45,2.04587541]
[1642475442134,46.35628671,140.52,140.45,2.04587541]
[1642475443138,38.11201356,140.53,140.45,2.04587541]
[1642475443337,38.11201356,140.53,140.45,12.72317541]
[1642475443537,27.43401356,140.53,140.45,12.72317541]
[1642475445338,24.58701356,140.53,140.46,2.847]
[1642475445538,2.03151356,140.53,140.48,10.6748]
[1642475445938,3.32069157,140.55,140.48,10.6748]
[1642475446138,43.0738054,140.55,140.48,10.6748]
[1642475446340,43.0738054,140.55,140.48,47.9436073]
[1642475446539,0.25,140.54,140.48,47.9436073]
[1642475446741,2.846,140.54,140.48,47.9436073]
[1642475446940,2.846,140.54,140.49,0.25]
[1642475447241,3.32069157,140.55,140.49,10.9243]
[1642475447641,1.28917801,140.55,140.49,10.9243]
[1642475448544,1.28917801,140.55,140.49,12.72017541]
[1642475459375,1.28917801,140.55,140.49,10.9243]
[1642475462577,1.28917801,140.55,140.49,12.72017541]
[1642475463678,1.28917801,140.55,140.49,12.47017541]
[1642475463878,0.25,140.54,140.49,1.79587541]
[1642475464077,2.846,140.53,140.49,1.79587541]
[1642475464279,0.25,140.52,140.49,1.79587541]
[1642475464577,3.03059896,140.51,140.48,2.846]
[1642475464778,3.03059896,140.51,140.48,47.84003702]
[1642475464981,0.25,140.52,140.48,47.84003702]
[1642475465580,0.25,140.53,140.48,44.99403702]
[1642475465780,2.846,140.52,140.48,44.99403702]
[1642475466683,2.846,140.52,140.48,55.66923702]
[1642475466886,2.846,140.52,140.48,44.99403702]
[1642475467283,2.846,140.52,140.49,0.25]
[1642475467487,2.846,140.52,140.5,3.03219997]
[1642475469186,2.846,140.52,140.5,13.70559997]
[1642475470087,2.846,140.52,140.51,0.25]
[1642475470285,2.846,140.52,140.51,10.9223]